Cogmind - Beta 10.2 @@@ ROGUE MODE // 2021.08.27 @ 02:13:00 Player: Savant Result: Destroyed self with Long-range Missile Launcher Performance ------------- Evolutions (4) 2000 Regions Visited (20) 4000 Robots Destroyed (195) 975 Value Destroyed (9561) 9561 Prototype IDs (27) 540 Alien Tech Used (0) 0 Bonus (5343) 5343 TOTAL SCORE: 22419 Bonus ------- High Alert Combat Kills 576 Follower Combat Kills 2193 Entered Garrisons 800 Used RIF Installer 1500 Met R17 at Cetus 500 Friendly Fire -226 Cogmind --------- Core Integrity 0/850 Matter 177/300 Energy 160/160 System Corruption 2% Temperature Cool (304) Movement Immobile (Siege) Ox1 Location -6/Garrison Parts ------- > --- POWER (1) -------- Light Nuclear Core > --- PROPULSION (4) --- Light Treads Centrium Heavy Treads > --- UTILITY (8) ------ Large Storage Unit High-capacity Storage Unit High-capacity Storage Unit Advanced Signal Interpreter Damper Plating Medium Regenerative Plating > --- WEAPON (2) ------- Long-range Missile Launcher Falx > --- INVENTORY (26) --- Light Angular Momentum Engine Experimental Heat Sink Advanced Cooling System Coolant Injector Large Storage Unit Energy Well (500) Advanced Sensor Array Quantum Capacitor Centrium Medium Armor Plating Centrium Medium Armor Plating Advanced Shield Generator Improved Hacking Suite Improved System Shield Relay Coupler [NC] (28) Relay Coupler [NC] (28) Relay Coupler [NC] (25) Relay Coupler [Hunter] System Backup Module Electrolaser Gatling Laser Flak Gun Remote Datajack Peak State ------------ > --- POWER ------------ Quantum Reactor > --- PROPULSION ------- Centrium Heavy Treads Centrium Heavy Treads > --- UTILITY ---------- Large Storage Unit High-capacity Storage Unit High-capacity Storage Unit Advanced Signal Interpreter Centrium Medium Armor Plating Medium Regenerative Plating Improved Hacking Suite Relay Coupler [Sentry] > --- WEAPON ----------- Proton Cannon Improved KE Penetrator > --- INVENTORY -------- Compact Particle Reactor Experimental Heat Sink Advanced Cooling System Coolant Injector Large Storage Unit Energy Well Advanced Sensor Array Quantum Capacitor Centrium Medium Armor Plating Damper Plating Advanced Shield Generator Improved Hacking Suite Improved System Shield Improved System Shield System Guard System Backup Module System Backup Module Precision Shock Rifle Improved Heavy Laser Heavy Plasma Cannon Long-range Missile Launcher Remote Datajack Falx [Rating: 103] Favorites ----------- Power Reinforced Antimatter Reactor Engine Improved Ion Engine Power Core Fission Core Reactor Reinforced Antimatter Reactor Propulsion Light Treads Treads Light Treads Leg Aluminum Leg Wheel Armored Huge Wheel Utility Large Storage Unit Device System Backup Module Storage Large Storage Unit Processor Advanced Signal Interpreter Hackware Relay Coupler [Sentry] Protection Damper Plating Weapon EM Pulse Cannon Energy Gun Force Rifle Energy Cannon EM Pulse Cannon Ballistic Gun Improved KE Penetrator Ballistic Cannon Light Cannon Launcher Rocket Launcher Special Weapon Remote Datajack Slashing Weapon Falx Special Melee Weapon Improved Datajack Build | -11 -10 -10 -9 -9 -9 -9 -7 -7 -7 -7 -7 -7 -6 -6 -6 -6 -6 -6 -6 -6 ------- Run | Scr Mat Min Mat Sto Gar Rec Fac Was Fac Gar Fac Gar Fac Was Fac Ext Cet Arc Hub Gar Slots Evolved 8 | . . . 2 . . . 4 . . . . . 2 . . . . . . . Power . | . . . . . . . . . . . . . . . . . . . . . Propulsion 2 | . . . 1 . . . 1 . . . . . . . . . . . . . Utility 6 | . . . 1 . . . 3 . . . . . 2 . . . . . . . Weapon . | . . . . . . . . . . . . . . . . . . . . . Parts Attached 331 | 6 3 10 12 19 4 4 3 24 12 26 11 33 35 8 39 27 23 7 15 10 Power 25 | 1 . 2 . 2 . . . 5 . 2 . 2 2 1 2 2 2 . 1 1 Engine 11 | 1 . 1 . 2 . . . 1 . 1 . 1 1 . 1 2 . . . . Core 5 | . . 1 . . . . . 1 . . . . 1 . 1 . . . . 1 Reactor 9 | . . . . . . . . 3 . 1 . 1 . 1 . . 2 . 1 . Propulsion 48 | 2 1 . 3 3 . . . 3 . 5 1 9 6 . 2 7 4 . 2 . Treads 25 | 1 . . 2 3 . . . 3 . 2 1 . . . 2 5 4 . 2 . Leg 18 | . . . . . . . . . . 3 . 9 4 . . 2 . . . . Wheel 5 | 1 1 . 1 . . . . . . . . . 2 . . . . . . . Hover . | . . . . . . . . . . . . . . . . . . . . . Flight . | . . . . . . . . . . . . . . . . . . . . . Utility 113 | 1 1 1 3 2 . 4 3 8 9 10 3 10 11 2 14 11 10 3 3 4 Device 56 | . . . 1 2 . 3 1 4 7 7 . 4 4 . 7 8 4 1 2 1 Storage 16 | 1 . 1 2 . . 1 1 1 2 . 1 1 1 1 2 1 . . . . Processor 4 | . 1 . . . . . . 1 . 1 . . 1 . . . . . . . Hackware 15 | . . . . . . . . . . . 1 4 3 . 5 1 . . 1 . Protection 22 | . . . . . . . 1 2 . 2 1 1 2 1 . 1 6 2 . 3 Artifact . | . . . . . . . . . . . . . . . . . . . . . Weapon 145 | 2 1 7 6 12 4 . . 8 3 9 7 12 16 5 21 7 7 4 9 5 Energy Gun 39 | 2 . 1 . 2 . . . . 2 6 4 8 2 . 5 . 1 1 4 1 Energy Cannon 25 | . . . 1 6 3 . . 4 1 2 . . . . 1 2 . 3 2 . Ballistic Gun 21 | . . . . . . . . . . . . . 6 2 4 1 5 . 3 . Ballistic Cannon 9 | . 1 3 3 2 . . . . . . . . . . . . . . . . Launcher 14 | . . 3 2 1 1 . . 4 . . . . . . . . 1 . . 2 Special Weapon 12 | . . . . . . . . . . . . . 2 3 5 2 . . . . Impact Weapon . | . . . . . . . . . . . . . . . . . . . . . Slashing Weapon 19 | . . . . 1 . . . . . 1 2 2 3 . 6 2 . . . 2 Piercing Weapon . | . . . . . . . . . . . . . . . . . . . . . Special Melee Weapon 6 | . . . . . . . . . . . 1 2 3 . . . . . . . Unidentified Prototypes 12 | . . . . 4 . . . 2 1 . . . . . . . 4 1 . . Parts Lost 63 | . . 1 2 2 . . . 8 . 11 . 11 3 . 8 4 2 1 8 2 Power 12 | . . 1 . 1 . . . 2 . . . 2 1 . 2 1 . . 1 1 Propulsion 22 | . . . 1 1 . . . 3 . 3 . 6 1 . 2 2 1 . 1 1 Utility 8 | . . . . . . . . 1 . 3 . 1 1 . 1 . 1 . . . Weapon 21 | . . . 1 . . . . 2 . 5 . 2 . . 3 1 . 1 6 . Highest Loss Streak 8 | . . 1 1 1 . . . 8 . 6 . 4 1 . 3 4 2 1 3 1 Average Slot Usage (%) 89 | . 97 100 99 98 99 100 92 46 68 86 100 96 93 86 85 90 87 86 85 79 Engine 2 | . 14 9 . 8 11 11 7 1 . . . 2 5 1 . 2 . . . . Core 1 | . . 4 11 2 . . . . . . . . . . 4 3 . . . 5 Reactor 2 | . . . . . . . . 2 7 6 7 3 . 4 1 . 5 6 6 . Treads 14 | . 14 14 21 30 33 33 23 11 15 14 17 8 . . 9 16 14 13 12 19 Leg 4 | . . . . . . . . . . 8 12 20 14 . . . . . . . Wheel 2 | . 14 14 11 1 . . . . . . . . 5 13 3 . . . . . Device 7 | . . . 1 9 11 11 15 8 5 18 16 4 5 . 3 4 4 11 5 1 Storage 19 | . 14 14 19 22 22 22 23 6 11 8 11 22 20 24 26 23 20 20 20 20 Processor 5 | . 12 14 11 1 . . . 2 4 4 7 7 8 6 6 6 6 6 6 6 Hackware 8 | . . . . . . . . . . . 1 6 14 20 15 17 19 13 13 . Protection 2 | . . . . . . . 7 3 7 6 7 3 2 1 . . 1 1 6 11 Energy Gun 4 | . 18 14 4 . . . . . 6 13 10 9 4 . 1 . . . 1 3 Energy Cannon 4 | . . . 6 20 21 22 15 6 7 1 . . . . . 5 2 5 3 . Ballistic Gun 2 | . . . . . . . . . . . . . 5 8 1 . 10 6 7 5 Slashing Weapon 1 | . . . . . . . . . . . 2 3 1 . 4 3 . . . 1 Naked Turns 1 | . . . . . . . . 1 . . . . . . . . . . . . Heaviest Build 150 | 12 14 27 46 59 59 75 100 112 114 114 93 106 98 104 119 119 121 130 124 150 Greatest Support 160 | 16 16 20 40 60 60 60 60 140 140 140 60 60 60 56 140 140 160 160 160 120 Greatest Overweight (x) 10 | . 1 2 4 4 . 1 1 3 . 10 2 4 3 1 3 2 1 . 1 1 Average Overweight (x) . | . . 1 2 . . . 1 . . . 1 1 1 1 . . . . . 1 Largest Inventory Capacity 32 | 6 6 10 16 16 16 18 24 24 16 16 18 24 24 30 32 32 26 26 26 26 Average Capacity 21 | 5 6 8 13 16 16 17 23 10 13 11 14 23 24 28 30 29 26 26 26 26 Most Carried 32 | 4 6 8 15 16 16 17 16 24 16 16 18 24 24 30 32 32 26 26 26 23 Average Carried 19 | 2 5 6 11 15 15 16 14 8 12 10 13 20 23 27 27 28 25 24 23 20 Final Capacity 32 | 6 6 10 16 16 16 18 24 10 16 10 18 24 24 30 32 26 26 26 26 26 Final Carried 30 | 4 6 8 14 16 16 17 15 8 16 10 18 24 24 30 30 26 23 26 20 23 Class Distribution -------------------- 38% | Scavenger-Mutant 26% | Bothacker-Mutant 16% | Hauler-Mutant 10% | Mutant 7% | Commander-Mutant Dominant Class ---------------- Mutant | -10/Materials Mutant | -10/Mines Scavenger-Mutant | -9/Materials Commander-Mutant | -9/Storage Scavenger-Mutant | -9/Garrison Commander-Mutant | -9/Recycling Scavenger-Mutant | -7/Factory Mutant | -7/Waste Scavenger-Mutant | -7/Factory Scavenger-Mutant | -7/Garrison Scavenger-Mutant | -7/Factory Bothacker-Mutant | -7/Garrison Bothacker-Mutant | -6/Factory Bothacker-Mutant | -6/Waste Bothacker-Mutant | -6/Factory Hauler-Mutant | -6/Extension Hauler-Mutant | -6/Cetus Scavenger-Mutant | -6/Archives Scavenger-Mutant | -6/Hub_04(d) Scavenger-Mutant | -6/Garrison Resources | -11 -10 -10 -9 -9 -9 -9 -7 -7 -7 -7 -7 -7 -6 -6 -6 -6 -6 -6 -6 -6 ----------- Run | Scr Mat Min Mat Sto Gar Rec Fac Was Fac Gar Fac Gar Fac Was Fac Ext Cet Arc Hub Gar Matter Collected 5984 | 258 32 220 227 194 90 40 . 604 165 210 100 330 480 205 766 463 706 192 445 257 Remotely . | . . . . . . . . . . . . . . . . . . . . . Salvage Created 9551 | . 82 251 347 272 407 15 . 1094 551 1095 81 620 425 237 701 414 741 374 1416 428 Parts 405 | . 13 22 25 14 17 1 . 17 18 43 6 18 15 6 28 28 34 21 59 20 Haulers Intercepted 3 | . . . 2 1 . . . . . . . . . . . . . . . . Recyclers Shooed . | . . . . . . . . . . . . . . . . . . . . . Parts Field Recycled . | . . . . . . . . . . . . . . . . . . . . . Retrieved Matter . | . . . . . . . . . . . . . . . . . . . . . Parts Self-Destructed . | . . . . . . . . . . . . . . . . . . . . . Prevented . | . . . . . . . . . . . . . . . . . . . . . Kills | -11 -10 -10 -9 -9 -9 -9 -7 -7 -7 -7 -7 -7 -6 -6 -6 -6 -6 -6 -6 -6 ------- Run | Scr Mat Min Mat Sto Gar Rec Fac Was Fac Gar Fac Gar Fac Was Fac Ext Cet Arc Hub Gar Combat Hostiles Destroyed 177 | . 3 11 11 5 11 1 . 5 10 22 1 15 11 1 12 5 14 4 20 15 Melee 6 | . . . . . . . . . . . . 1 . . 5 . . . . . Guns 90 | . 3 2 1 . . . . . 5 14 1 13 11 1 6 . 10 1 16 6 Cannons 39 | . . 4 3 5 10 1 . 2 2 2 . . . . . 4 . 3 3 . AOE 35 | . . 5 7 . 1 . . 3 1 3 . 1 . . 1 . 4 . . 9 Classes Destroyed 15 | . 3 1 2 . 1 1 . 1 2 1 . . . . . 1 . 1 1 . Worker 7 | . 1 2 . . . . . . . . . . . . . . . . 4 . Builder 2 | . . . . . . . . . . . . . . . . . . . 2 . Hauler 3 | . . . 2 1 . . . . . . . . . . . . . . . . Operator 2 | . . . . . . . . . . . . . . . . . . 1 1 . Drone 1 | . . . . . . 1 . . . . . . . . . . . . . . Watcher 4 | . 1 . . . . . . . 1 . 1 . . . . . 1 . . . Swarmer 49 | . 3 6 6 1 4 . . . . 7 . 4 6 . . . 4 . . 8 Grunt 68 | . . 5 3 1 4 . . . 6 9 1 7 3 . 5 1 3 . 14 6 Brawler 4 | . . . . . 1 . . . 1 . . . . . 1 . . . 1 . Duelist 3 | . . . . . . . . . 1 . . 1 . . . . . . 1 . Sentry 24 | . . . 2 3 2 . . . 1 5 . 1 . . 1 2 . 4 3 . Hunter 7 | . . . . . . . . . 1 . . 2 . . 3 . . . 1 . Programmer 8 | . . . . . . . . . . 1 . . 2 . 2 . 2 . . 1 Behemoth 2 | . . . . . . . . . . . . . . . . 2 . . . . Compactor 6 | . . . . . . . . 5 . . . . . 1 . . . . . . Cetus Guard 4 | . . . . . . . . . . . . . . . . . 4 . . . Guerrilla 1 | . . . . . . . . . . . . . . . . . 1 . . . Best Kill Streak 7 | . 5 6 3 2 5 1 . 2 2 5 2 4 6 1 4 2 4 2 7 6 Combat Bots Only 6 | . 3 3 3 2 5 1 . 2 2 5 1 4 6 1 4 2 4 2 6 6 Max Kills in Single Turn 4 | . 2 3 2 1 1 1 . 1 1 2 1 1 2 1 1 1 4 1 2 2 Gunslinging 1 | . 1 . . . . . . . . . . . 1 . . . . . . . Exploded 4 | . . 3 2 . 1 . . 1 1 1 . 1 . . 1 . 4 . . 2 Melee 1 | . . . . . . . . . . . . 1 . . 1 . . . . . Uniques/NPCs Destroyed . | . . . . . . . . . . . . . . . . . . . . . Combat | -11 -10 -10 -9 -9 -9 -9 -7 -7 -7 -7 -7 -7 -6 -6 -6 -6 -6 -6 -6 -6 -------- Run | Scr Mat Min Mat Sto Gar Rec Fac Was Fac Gar Fac Gar Fac Was Fac Ext Cet Arc Hub Gar Damage Taken 17174 | . 22 433 329 347 224 . . 716 1232 2280 288 1694 1107 19 2522 595 1791 334 2711 530 Core 1686 | . 8 125 22 93 . . . 81 26 133 72 267 140 19 242 80 81 19 217 61 Absorbed by Shields 175 | . . . . . . . . . . . . 17 . . . 72 12 . . 74 Reduced by Siege Mode 216 | . . . . . . . . . 5 9 . . . . 12 45 140 5 . . Core Remaining (%) 58 | 100 . 46 . . . 71 . . . . . 17 . . . . . . . . Volleys Fired 583 | . 6 25 20 19 22 3 . 37 35 66 4 43 39 10 48 42 42 14 76 32 Largest 2 | . 2 2 2 2 2 2 . 2 2 2 2 2 2 2 2 2 2 2 2 2 Hottest 210 | . 90 85 98 98 98 98 . 210 144 160 160 125 130 56 130 150 105 125 155 91 Shots Fired 1017 | . 12 47 30 33 38 6 . 53 70 127 8 76 70 13 70 54 79 29 152 50 Gun 656 | . 11 22 5 . . . . . 45 115 8 76 63 5 51 . 77 16 124 38 Cannon 261 | . 1 22 19 33 36 6 . 32 25 12 . . . . 1 32 1 13 28 . Launcher 45 | . . 3 6 . 2 . . 21 . . . . . . . . 1 . . 12 Special 55 | . . . . . . . . . . . . . 7 8 18 22 . . . . Kinetic 321 | . 1 22 14 6 . . . . . . . . 47 5 27 . 77 16 87 19 Thermal 310 | . 11 22 5 13 20 3 . 32 33 55 8 64 . . . . . 1 24 19 Explosive 45 | . . 3 6 . 2 . . 21 . . . . . . . . 1 . . 12 Electromagnetic 286 | . . . 5 14 16 3 . . 37 72 . 12 16 . 25 32 1 12 41 . Robot Hit Streak 24 | . 5 16 8 7 13 1 . 18 22 22 5 13 7 7 20 15 13 12 24 8 Robot Miss Streak 11 | . 1 2 2 1 1 2 . 1 5 3 1 4 11 6 7 2 5 2 3 7 Penetration Max 1 | . . . . . . . . . . . . . . . 1 . 1 . 1 . Secondary Targets 15 | . 1 . . . . . . . . 4 . 3 3 . . . . . 2 2 Max Gunslinging Chain 1 | . 1 . . . . . . . . 1 . 1 1 . . . . . 1 1 Shots Hit Robots 778 | . 6 36 20 20 26 1 . 34 65 106 10 64 54 9 57 41 57 21 122 29 Core Hits 443 | . 5 18 16 7 11 1 . 16 50 64 4 45 37 1 24 7 27 13 60 37 Critical Hits 36 | . . 1 . . . . . . . 2 2 . . . . 1 12 3 15 . Critical Kills 13 | . . . . . . . . . . . 1 . . . . 1 5 2 4 . Critical Parts Destroyed 19 | . . 1 . . . . . . . 2 . . . . . . 4 1 11 . Melee Attacks 66 | . . . . 1 . . . . . 2 10 9 5 . 16 15 . . . 8 Impact . | . . . . . . . . . . . . . . . . . . . . . Slashing 54 | . . . . 1 . . . . . 2 6 3 3 . 16 15 . . . 8 Piercing . | . . . . . . . . . . . . . . . . . . . . . Sneak Attacks 11 | . . . . . . . . . . . 4 1 . . 6 . . . . . Combat Hostiles 7 | . . . . . . . . . . . . 1 . . 6 . . . . . Follow-up Attacks . | . . . . . . . . . . . . . . . . . . . . . Damage Inflicted 21987 | . 82 862 938 647 881 57 . 3170 1502 2283 165 1251 631 91 1604 649 1597 651 3535 1391 Guns 10358 | . 82 234 60 . . . . . 769 1604 158 1040 631 91 779 . 1231 351 2811 517 Cannons 5525 | . . 291 257 590 741 42 . 1111 507 276 . . . . 26 649 28 300 707 . Explosions 5161 | . . 337 615 27 140 . . 2059 149 403 . 88 . . 131 . 338 . . 874 Melee 791 | . . . . . . . . . . . . 123 . . 668 . . . . . Ramming 152 | . . . 6 30 . 15 . . 77 . 7 . . . . . . . 17 . Kinetic 5555 | . . 291 139 33 . . . . . . . . 521 91 542 . 1231 351 2093 263 Thermal 6228 | . 82 234 130 303 406 . . 1111 769 1181 158 962 . . 131 . . . 507 254 Explosive 4293 | . . 337 545 . 140 . . 2059 . . . . . . . . 338 . . 874 Electromagnetic 4968 | . . . 118 281 335 42 . . 656 1102 . 166 110 . 263 649 28 300 918 . Impact . | . . . . . . . . . . . . . . . . . . . . . Slashing 791 | . . . . . . . . . . . . 123 . . 668 . . . . . Piercing . | . . . . . . . . . . . . . . . . . . . . . Highest Corruption 26 | . . . . . . . . . . . . . 2 24 26 23 16 11 2 2 Average Corruption 12 | . . . . . . . . . . . . . 1 13 24 17 13 5 1 2 Corruption Purged 26 | . . . . . . . . . . . . . . . 3 7 5 11 . . Effects 372 | . . . . . . . . . . . . . 7 15 154 98 64 28 3 3 Message Errors 57 | . . . . . . . . . . . . . 1 2 21 17 12 3 1 . Matter Fused 63 | . . . . . . . . . . . . . . 2 25 18 9 9 . . Heat Flow Errors 35 | . . . . . . . . . . . . . . . 17 8 6 3 . 1 Energy Discharges 33 | . . . . . . . . . . . . . . 2 15 7 5 3 . 1 Parts Rejected 2 | . . . . . . . . . . . . . . . . 2 . . . . Data Loss (minor) 38 | . . . . . . . . . . . . . 5 2 12 9 3 6 1 . Data Loss (major) 8 | . . . . . . . . . . . . . . 1 3 3 1 . . . Misfires 9 | . . . . . . . . . . . . . . 1 1 4 2 1 . . Alerts 4 | . . . . . . . . . . . . . . 1 2 1 . . . . Misdirections 58 | . . . . . . . . . . . . . . 2 34 13 9 . . . Targeting Errors 55 | . . . . . . . . . . . . . . 2 22 15 11 3 1 1 Weapon Failures 10 | . . . . . . . . . . . . . 1 . 2 1 6 . . . Overload Shots 4 | . . . . . . . . 4 . . . . . . . . . . . . Effects 1 | . . . . . . . . 1 . . . . . . . . . . . . Heat Surge 1 | . . . . . . . . 1 . . . . . . . . . . . . Overflow Damage 288 | . . 12 25 59 24 . . 4 53 9 . . . . 4 . 22 . 56 20 Projectiles 128 | . . 12 . 52 8 . . . . . . . . . . . . . 56 . Explosions 155 | . . . 25 7 16 . . 4 48 9 . . . . 4 . 22 . . 20 Melee 5 | . . . . . . . . . 5 . . . . . . . . . . . Knockbacks 8 | . . 7 . . . . . . 1 . . . . . . . . . . . Impact 1 | . . . . . . . . . 1 . . . . . . . . . . . Kinetic 7 | . . 7 . . . . . . . . . . . . . . . . . . Secondary . | . . . . . . . . . . . . . . . . . . . . . Self-Inflicted Damage 798 | . . 48 69 . . . . 267 127 132 . 29 . . 59 . . . . 67 Shots 22 | . . 2 3 . . . . 8 2 3 . 1 . . 1 . . . . 2 Rammed 19 | . . . 1 3 . 2 . . 10 . 1 . . . . . . . 2 . Targets Rammed 19 | . . . 1 3 . 2 . . 10 . 1 . . . . . . . 2 . Kicked . | . . . . . . . . . . . . . . . . . . . . . Crushed . | . . . . . . . . . . . . . . . . . . . . . Highest Temperature 384 | . 150 297 141 150 144 60 . 302 384 261 90 209 342 6 262 209 262 213 306 305 Average Temperature 92 | . 67 126 50 48 61 28 . 155 130 98 32 102 155 4 74 52 89 77 115 75 Received Heat Transfer 3873 | . . 168 69 90 66 . . . 423 732 60 345 66 9 438 117 198 27 963 102 Effects 9 | . . 1 . . . . . . 4 . . 2 . . . . 1 . 1 . Energy Bleed 5 | . . . . . . . . . 3 . . . . . . . 1 . 1 . Interference 3 | . . 1 . . . . . . . . . 2 . . . . . . . . Matter Decay 1 | . . . . . . . . . 1 . . . . . . . . . . . Siege Activations 10 | . . . . . . . . . 1 1 . . . . 1 2 3 1 1 . Total Turns 186 | . . . . . . . . . 5 16 . . . . 14 26 81 12 32 . Longest Duration 61 | . . . . . . . . . 5 16 . . . . 14 18 61 12 32 . Robots Corrupted 7 | . . . . . . . . . 2 3 . . . . . 1 . . 1 . Combat Hostiles 7 | . . . . . . . . . 2 3 . . . . . 1 . . 1 . Parts Fried 32 | . . . . . . 1 . . 5 11 . . 1 . 1 3 3 1 6 . Impact Corruptions 1 | . . . . . . . . . 1 . . . . . . . . . . . Robots Melted . | . . . . . . . . . . . . . . . . . . . . . Combat Hostiles . | . . . . . . . . . . . . . . . . . . . . . Parts Melted 11 | . 1 . . . 2 . . . . 1 . 2 . . . 1 . . 4 . Heat Transferred 8569 | . 223 666 285 450 600 . . 1620 610 1172 222 1213 . . 150 . . . 803 555 Parts Sabotaged . | . . . . . . . . . . . . . . . . . . . . . Parts Stolen . | . . . . . . . . . . . . . . . . . . . . . Parts Stripped . | . . . . . . . . . . . . . . . . . . . . . Power Chain Reactions 11 | . . . 1 1 . . . . 2 5 . 1 . . 1 . . . . . Missiles Intercepted . | . . . . . . . . . . . . . . . . . . . . . Alert | -11 -10 -10 -9 -9 -9 -9 -7 -7 -7 -7 -7 -7 -6 -6 -6 -6 -6 -6 -6 -6 ------- Run | Scr Mat Min Mat Sto Gar Rec Fac Was Fac Gar Fac Gar Fac Was Fac Ext Cet Arc Hub Gar Peak Influence 1077 | . 140 304 454 286 794 477 1077 376 139 789 482 791 536 61 218 337 467 260 453 636 Initial 1061 | . . 19 64 107 148 357 1061 376 48 95 413 312 415 61 39 87 141 128 . 236 Average 267 | . 65 152 237 128 443 366 1060 216 55 525 378 624 279 53 92 89 282 99 210 418 Maximum Alert Level 3 | . . 1 2 1 3 2 3 1 . 3 2 3 2 . 1 1 2 1 2 2 Low Security (%) 46 | 100 100 84 53 82 . . . 32 100 9 . . 25 100 97 87 16 70 36 . Level 1 28 | . . 15 42 17 46 73 . 67 . 13 42 8 53 . 2 12 75 29 58 35 Level 2 21 | . . . 3 . 44 26 . . . 59 57 71 20 . . . 8 . 5 64 Level 3 3 | . . . . . 8 . 100 . . 17 . 20 . . . . . . . . Level 4 . | . . . . . . . . . . . . . . . . . . . . . Level 5 . | . . . . . . . . . . . . . . . . . . . . . High Security . | . . . . . . . . . . . . . . . . . . . . . Max Security . | . . . . . . . . . . . . . . . . . . . . . Squads Dispatched 34 | . 2 . 1 2 . . . . 4 . 1 . 4 . 9 1 . . 10 . Investigation 8 | . 1 . 1 . . . . . . . . . 2 . 2 1 . . 1 . Extermination 6 | . . . . . . . . . 1 . . . 2 . 2 . . . 1 . Reinforcement 8 | . 1 . . 2 . . . . 1 . 1 . . . 1 . . . 2 . Assault 1 | . . . . . . . . . . . . . . . 1 . . . . . Garrison 11 | . . . . . . . . . 2 . . . . . 3 . . . 6 . Intercept . | . . . . . . . . . . . . . . . . . . . . . Construction Impeded . | . . . . . . . . . . . . . . . . . . . . . Haulers Reinforced 1 | . . . . . . . . . 1 . . . . . . . . . . . Stealth | -11 -10 -10 -9 -9 -9 -9 -7 -7 -7 -7 -7 -7 -6 -6 -6 -6 -6 -6 -6 -6 --------- Run | Scr Mat Min Mat Sto Gar Rec Fac Was Fac Gar Fac Gar Fac Was Fac Ext Cet Arc Hub Gar Distress Signals 13 | . 2 . . 3 . . . . . . 1 . 1 . 1 . 1 . 4 . Communications Jammed . | . . . . . . . . . . . . . . . . . . . . . Distress Signals . | . . . . . . . . . . . . . . . . . . . . . Times Spotted 348 | . 7 15 18 20 16 13 . 8 16 25 11 27 22 6 39 23 23 10 34 15 Peak Tracking Total 9 | . 4 4 5 3 6 2 . 2 4 4 3 4 7 3 8 4 5 1 9 7 Tactical Retreats 32 | . . 4 . 3 2 . . 2 1 4 . 2 . . 3 1 7 . 3 . Traps | -11 -10 -10 -9 -9 -9 -9 -7 -7 -7 -7 -7 -7 -6 -6 -6 -6 -6 -6 -6 -6 ------- Run | Scr Mat Min Mat Sto Gar Rec Fac Was Fac Gar Fac Gar Fac Was Fac Ext Cet Arc Hub Gar Traps Triggered 25 | . . . . 1 . . 1 . . 12 2 5 1 . 2 . . . . 1 Indirectly . | . . . . . . . . . . . . . . . . . . . . . Trap Hack Attempts . | . . . . . . . . . . . . . . . . . . . . . Triggered . | . . . . . . . . . . . . . . . . . . . . . Disarmed . | . . . . . . . . . . . . . . . . . . . . . Reprogrammed . | . . . . . . . . . . . . . . . . . . . . . Reused . | . . . . . . . . . . . . . . . . . . . . . Traps Extracted . | . . . . . . . . . . . . . . . . . . . . . Installed . | . . . . . . . . . . . . . . . . . . . . . Triggered . | . . . . . . . . . . . . . . . . . . . . . Machines | -11 -10 -10 -9 -9 -9 -9 -7 -7 -7 -7 -7 -7 -6 -6 -6 -6 -6 -6 -6 -6 ---------- Run | Scr Mat Min Mat Sto Gar Rec Fac Was Fac Gar Fac Gar Fac Was Fac Ext Cet Arc Hub Gar Machines Disabled 24 | . . 1 . 2 . 2 . . . 4 . 3 . . 2 1 3 2 1 3 Max in Single Turn 2 | . . 1 . 1 . . . . . 1 . 1 . . 2 1 1 1 1 1 Garrison Access 3 | . . . . . . . . . . . 1 . 1 . 1 . . . . . Garrison Relay 8 | . . . . . . . . . . 4 . 3 . . . . . . . 1 Machines Sabotaged . | . . . . . . . . . . . . . . . . . . . . . Garrisons Compromised . | . . . . . . . . . . . . . . . . . . . . . Overloaded Fab Kills . | . . . . . . . . . . . . . . . . . . . . . Fab Network Shutdowns . | . . . . . . . . . . . . . . . . . . . . . Hacking | -11 -10 -10 -9 -9 -9 -9 -7 -7 -7 -7 -7 -7 -6 -6 -6 -6 -6 -6 -6 -6 --------- Run | Scr Mat Min Mat Sto Gar Rec Fac Was Fac Gar Fac Gar Fac Was Fac Ext Cet Arc Hub Gar Machines Accessed 82 | . 7 . 3 11 . 8 1 . 7 . 5 . 14 . 10 12 1 . 3 . Terminals 55 | . 6 . 2 9 . 4 1 . 4 . 1 . 8 . 5 12 1 . 2 . Fabricators 7 | . . . . . . . . . 2 . 2 . 2 . 1 . . . . . Repair Stations 4 | . . . . 1 . . . . . . . . 1 . 2 . . . . . Recycling Units 8 | . 1 . 1 . . 4 . . . . . . 1 . 1 . . . . . Scanalyzers 2 | . . . . . . . . . . . . . 1 . 1 . . . . . Garrison Access 6 | . . . . 1 . . . . 1 . 2 . 1 . . . . . 1 . Total Hacks 221 | . 22 . 7 25 . 23 4 . 15 . 12 . 46 . 23 28 2 . 14 . Successful 138 | . 14 . 5 18 . 17 2 . 7 . 9 . 27 . 11 19 1 . 8 . Failed 82 | . 7 . 2 7 . 6 2 . 8 . 3 . 19 . 12 9 1 . 6 . Catastrophic 9 | . 1 . . . . . 1 . 1 . 2 . 1 . 1 1 1 . . . Database Lockouts 1 | . 1 . . . . . . . . . . . . . . . . . . . Manual 100 | . 9 . 5 6 . 13 3 . 4 . 4 . 22 . 9 11 1 . 13 . Terminals 150 | . 20 . 5 18 . 15 4 . 10 . 3 . 26 . 9 28 2 . 10 . Fabricators 16 | . . . . . . . . . 4 . 4 . 4 . 4 . . . . . Repair Stations 13 | . . . . 6 . . . . . . . . 3 . 4 . . . . . Recycling Units 19 | . 2 . 2 . . 8 . . . . . . 3 . 4 . . . . . Scanalyzers 8 | . . . . . . . . . . . . . 6 . 2 . . . . . Garrison Access 15 | . . . . 1 . . . . 1 . 5 . 4 . . . . . 4 . Terminal Hacks 45 | . 8 . 1 8 . 7 . . 3 . . . 6 . 1 10 1 . . . Part Schematic 4 | . . . . . . 2 . . . . . . 1 . . 1 . . . . Robot Analysis 5 | . 3 . . . . . . . 1 . . . . . . 1 . . . . Prototype ID Bank 4 | . . . . . . 3 . . . . . . 1 . . . . . . . Open Door 11 | . . . . 4 . . . . . . . . . . 1 5 1 . . . Branch Access Points 1 | . 1 . . . . . . . . . . . . . . . . . . . Machine Index 1 | . . . . . . . . . . . . . 1 . . . . . . . Terminal Index 1 | . . . . . . . . . . . . . 1 . . . . . . . Unreport Threat 3 | . 1 . . 1 . 1 . . . . . . . . . . . . . . Locate Traps 6 | . 2 . 1 1 . . . . . . . . . . . 2 . . . . Transport Status 1 | . 1 . . . . . . . . . . . . . . . . . . . Hauler Manifests 1 | . . . . 1 . . . . . . . . . . . . . . . . Zone Layout 7 | . . . . 1 . 1 . . 2 . . . 2 . . 1 . . . . Fabricator Hacks 6 | . . . . . . . . . . . 3 . 1 . 2 . . . . . Load Schematic 2 | . . . . . . . . . . . 1 . . . 1 . . . . . Build 4 | . . . . . . . . . . . 2 . 1 . 1 . . . . . Repair Station Hacks 10 | . . . . 6 . . . . . . . . 1 . 3 . . . . . Scan Component 6 | . . . . 3 . . . . . . . . 1 . 2 . . . . . Repair 4 | . . . . 3 . . . . . . . . . . 1 . . . . . Recycling Unit Hacks 8 | . 1 . 1 . . 4 . . . . . . 1 . 1 . . . . . Report Inventory 8 | . 1 . 1 . . 4 . . . . . . 1 . 1 . . . . . Scanalyzer 6 | . . . . . . . . . . . . . 5 . 1 . . . . . Insert Component 3 | . . . . . . . . . . . . . 2 . 1 . . . . . Analyze 3 | . . . . . . . . . . . . . 3 . . . . . . . Garrison Access Hacks 9 | . . . . 1 . . . . 1 . 4 . 2 . . . . . 1 . Unlock Access 4 | . . . . 1 . . . . 1 . 1 . . . . . . . 1 . Seal Access 2 | . . . . . . . . . . . 1 . 1 . . . . . . . Coupler Status 3 | . . . . . . . . . . . 2 . 1 . . . . . . . Unauthorized Hacks 54 | . 5 . 3 3 . 6 2 . 3 . 2 . 11 . 3 9 . . 7 . Terminals 44 | . 4 . 2 3 . 2 2 . 2 . 2 . 9 . 3 9 . . 6 . Track 16 | . 2 . 1 1 . . 1 . . . 1 . 3 . 1 4 . . 2 . Assimilate 1 | . . . . . . . . . . . . . 1 . . . . . . . Botnet 23 | . 2 . 1 2 . 2 1 . 2 . 1 . 4 . 2 4 . . 2 . Disrupt 2 | . . . . . . . . . . . . . . . . 1 . . 1 . Operators 2 | . . . . . . . . . . . . . 1 . . . . . 1 . Fabricators 2 | . . . . . . . . . 1 . . . 1 . . . . . . . Report 2 | . . . . . . . . . 1 . . . 1 . . . . . . . Repair Stations . | . . . . . . . . . . . . . . . . . . . . . Recycling Units 7 | . 1 . 1 . . 4 . . . . . . 1 . . . . . . . Mask 1 | . . . . . . . . . . . . . 1 . . . . . . . Tunnel 6 | . 1 . 1 . . 4 . . . . . . . . . . . . . . Scanalyzers . | . . . . . . . . . . . . . . . . . . . . . Garrison Access 1 | . . . . . . . . . . . . . . . . . . . 1 . Reprogram 1 | . . . . . . . . . . . . . . . . . . . 1 . Data Cores Recovered . | . . . . . . . . . . . . . . . . . . . . . Used . | . . . . . . . . . . . . . . . . . . . . . Hacking Detections 62 | . 5 . 3 5 . 3 1 . 6 . 4 . 14 . 10 8 . . 3 . Full Trace Events 6 | . . . . . . 1 . . . . . . 2 . 1 1 . . 1 . Feedback Events 1 | . . . . . . . . . . . . . . . . . . . 1 . Corruption 1 | . . . . . . . . . . . . . . . . . . . 1 . Feedback Blocked . | . . . . . . . . . . . . . . . . . . . . . Robot Schematics Acquired . | . . . . . . . . . . . . . . . . . . . . . Robots Built 7 | . . . . . . . . . . . 4 . 3 . . . . . . . Matter 537 | . . . . . . . . . . . 252 . 285 . . . . . . . Time 143 | . . . . . . . . . . . 67 . 76 . . . . . . . Total Robot Build Rating 31 | . . . . . . . . . . . 16 . 15 . . . . . . . Part Schematics Acquired 4 | . . . . . . 2 . . . . . . 1 . . 1 . . . . Parts Built 2 | . . . . . . . . . . . 1 . . . 1 . . . . . Matter 204 | . . . . . . . . . . . 102 . . . 102 . . . . . Time 76 | . . . . . . . . . . . 25 . . . 51 . . . . . Total Part Build Rating 2 | . . . . . . . . . . . 1 . . . 1 . . . . . Parts Repaired 4 | . . . . 3 . . . . . . . . . . 1 . . . . . Time 200 | . . . . 144 . . . . . . . . . . 56 . . . . . Parts Recycled . | . . . . . . . . . . . . . . . . . . . . . Recycled Matter . | . . . . . . . . . . . . . . . . . . . . . Retrieved Matter . | . . . . . . . . . . . . . . . . . . . . . Retrieved Components . | . . . . . . . . . . . . . . . . . . . . . Parts Scanalyzed 2 | . . . . . . . . . . . . . 2 . . . . . . . Part Schematics Acquired . | . . . . . . . . . . . . . . . . . . . . . Parts Damaged . | . . . . . . . . . . . . . . . . . . . . . Bothacking | -11 -10 -10 -9 -9 -9 -9 -7 -7 -7 -7 -7 -7 -6 -6 -6 -6 -6 -6 -6 -6 ------------ Run | Scr Mat Min Mat Sto Gar Rec Fac Was Fac Gar Fac Gar Fac Was Fac Ext Cet Arc Hub Gar Used RIF Installer 3 | . . . . . 1 . . . . 1 . 1 . . . . . . . . Zone Cloak 1 | . . . . . . . . . . 1 . . . . . . . . . . Robot Detection 1 | . . . . . . . . . . . . 1 . . . . . . . . Robots Hacked 41 | . . . . . . . . . . . 3 4 7 6 15 6 . . . . Non-combat 14 | . . . . . . . . . . . 3 . 3 . 3 5 . . . . Combat 27 | . . . . . . . . . . . . 4 4 6 12 1 . . . . Robot Hacks Applied 42 | . . . . . . . . . . . 3 4 7 7 15 6 . . . . parse_system 5 | . . . . . . . . . . . 1 . 1 1 . 2 . . . . find_chute 1 | . . . . . . . . . . . . . 1 . . . . . . . drop_inventory 4 | . . . . . . . . . . . 2 . 1 . 1 . . . . . ignore_parts 3 | . . . . . . . . . . . . . . . . 3 . . . . block_reporting 1 | . . . . . . . . . . . . . . . . 1 . . . . map_route 1 | . . . . . . . . . . . . . . . 1 . . . . . ignore_targets 6 | . . . . . . . . . . . . . . 6 . . . . . . disable_weapons 1 | . . . . . . . . . . . . . . . 1 . . . . . reboot_system 3 | . . . . . . . . . . . . . 1 . 2 . . . . . go_dormant 1 | . . . . . . . . . . . . . . . 1 . . . . . overwrite_iff 6 | . . . . . . . . . . . . 1 1 . 4 . . . . . streamctrl_high 1 | . . . . . . . . . . . . 1 . . . . . . . . formatsys_low 1 | . . . . . . . . . . . . . . . 1 . . . . . formatsys_high 8 | . . . . . . . . . . . . 2 2 . 4 . . . . . Relay Couplers Released 35 | . . . . . . . . . . 16 . 13 . . 2 . . . . 4 Machine Destruction 35 | . . . . . . . . . . 16 . 13 . . 2 . . . . 4 Attached 13 | . . . . . . . . . . . 1 4 3 . 5 . . . . . Robots Rewired 23 | . . . . . 3 9 . . . 1 . . . . 1 9 . . . . Allies Hacked . | . . . . . . . . . . . . . . . . . . . . . Hacks Repelled . | . . . . . . . . . . . . . . . . . . . . . Allies | -11 -10 -10 -9 -9 -9 -9 -7 -7 -7 -7 -7 -7 -6 -6 -6 -6 -6 -6 -6 -6 -------- Run | Scr Mat Min Mat Sto Gar Rec Fac Was Fac Gar Fac Gar Fac Was Fac Ext Cet Arc Hub Gar Total Allies 71 | . . 1 . 10 3 9 . . . 1 7 4 7 1 10 17 . . 1 . Largest Group 10 | . . 1 1 10 5 10 5 3 . 1 6 5 4 4 5 9 9 . 1 . Highest-Rated Group 382 | . . 31 31 88 63 125 57 37 . 16 129 98 97 99 126 382 382 . 29 . Highest-Rated Ally 156 | . . 31 31 16 21 24 21 21 . 16 31 31 41 31 41 156 156 . 29 . Total Orders 19 | . . . . 5 6 1 1 . . . . . 3 . 1 . 2 . . . STAY 2 | . . . . 1 . . . . . . . . . . . . 1 . . . FOLLOW 1 | . . . . . . . . . . . . . . . . . 1 . . . AID 1 | . . . . . . . . . . . . . . . 1 . . . . . DROP 1 | . . . . . . 1 . . . . . . . . . . . . . . EXPLORE 12 | . . . . 4 5 . 1 . . . . . 2 . . . . . . . RETURN 2 | . . . . . 1 . . . . . . . 1 . . . . . . . Ally Attacks 757 | . . . 15 60 61 118 . 39 . 2 58 50 13 115 67 77 72 . 10 . Total Damage 11815 | . . . 207 574 733 981 . 783 . 27 512 602 269 2009 1241 2498 1249 . 130 . Kills 107 | . . . 1 11 12 26 . . . . 9 6 . 4 10 20 7 . 1 . Allies Corrupted 3 | . . . . 1 . . . . . . . . . . . 1 1 . . . Allies Melted . | . . . . . . . . . . . . . . . . . . . . . Intel | -11 -10 -10 -9 -9 -9 -9 -7 -7 -7 -7 -7 -7 -6 -6 -6 -6 -6 -6 -6 -6 ------- Run | Scr Mat Min Mat Sto Gar Rec Fac Was Fac Gar Fac Gar Fac Was Fac Ext Cet Arc Hub Gar Robot Analysis Total 5 | . 3 . . . . . . . 1 . . . . . . 1 . . . . Derelict Logs Recovered 1 | . . 1 . . . . . . . . . . . . . . . . . . Drone Launches 18 | . . . . 9 5 . 1 . . . . . 3 . . . . . . . Drone Recoveries 8 | . . . . 3 4 . . . . . . . 1 . . . . . . . Exploration | -11 -10 -10 -9 -9 -9 -9 -7 -7 -7 -7 -7 -7 -6 -6 -6 -6 -6 -6 -6 -6 ------------- Run | Scr Mat Min Mat Sto Gar Rec Fac Was Fac Gar Fac Gar Fac Was Fac Ext Cet Arc Hub Gar Turns Passed 19528 | 51 279 659 421 1088 622 676 76 593 1131 1253 1180 2060 1951 238 2122 1636 897 1240 837 518 Spaces Moved 10062 | 41 276 539 278 525 258 285 41 485 598 547 596 1012 1315 179 1243 828 396 98 307 215 Core 356 | 9 . . . . . . . 346 . 1 . . . . . . . . . . Treads 5898 | . . 15 43 442 258 285 41 139 598 546 596 315 . . 789 815 396 98 307 215 Legs 1331 | . . . . . . . . . . . . 697 621 . . 13 . . . . Wheels 2477 | 32 276 524 235 83 . . . . . . . . 694 179 454 . . . . . Hover . | . . . . . . . . . . . . . . . . . . . . . Flight . | . . . . . . . . . . . . . . . . . . . . . Fastest Speed 50 | 50 90 90 90 120 160 160 180 50 160 160 180 150 110 110 110 160 160 160 160 180 Average Speed 146 | 89 91 99 119 155 160 172 180 87 160 174 183 168 129 110 142 160 160 160 161 180 Slowest Speed 550 | 100 100 180 180 180 160 180 180 220 160 550 200 240 180 110 160 180 180 160 180 180 Overloaded Moves . | . . . . . . . . . . . . . . . . . . . . . Propulsion Burnouts . | . . . . . . . . . . . . . . . . . . . . . Robots Hopped 1 | . . . . . . . . . . . . . . . . . 1 . . . Cave-ins Triggered . | . . . . . . . . . . . . . . . . . . . . . Exploration Rate (%) 53 | 3 50 98 26 82 60 61 3 100 22 86 18 70 33 84 34 86 90 70 19 27 Regions Visited 20 Branch Regions 7 Pre-discovered Areas 6 | . 1 . 1 . . 4 . . . . . . . . . . . . . . Known Exits Taken 10 | . 1 . 1 1 . . . . 1 . 1 . . . 1 1 1 1 1 . Unknown Exits Taken 3 | 1 . 1 . . . 1 . . . . . . . . . . . . . . Scrap Searched 1 | . . 1 . . . . . . . . . . . . . . . . . . Spaces Dug 48 | . . . . 2 . . . . . 1 6 . 3 . 9 . . . . 27 Terrain Destroyed 419 | . . 34 88 8 3 3 . 98 7 29 7 7 3 . 14 . 31 4 12 71 Melee 26 | . . . . . . . . . . 1 6 . 3 . 9 . . . . 7 Projectile 36 | . . . . 4 2 3 . 1 . . 1 . . . . . 9 4 12 . AOE 357 | . . 34 88 4 1 . . 97 7 28 . 7 . . 5 . 22 . . 64 Terrain Rammed . | . . . . . . . . . . . . . . . . . . . . . Walls Destroyed . | . . . . . . . . . . . . . . . . . . . . . Machines Disabled . | . . . . . . . . . . . . . . . . . . . . . Actions | -11 -10 -10 -9 -9 -9 -9 -7 -7 -7 -7 -7 -7 -6 -6 -6 -6 -6 -6 -6 -6 --------- Run | Scr Mat Min Mat Sto Gar Rec Fac Was Fac Gar Fac Gar Fac Was Fac Ext Cet Arc Hub Gar Total 13701 | 52 290 615 334 763 431 463 45 598 697 717 663 1277 1490 212 1491 1060 580 1152 495 276 Wait 2116 | 2 . 35 11 164 75 68 . 27 23 26 19 142 71 3 119 127 89 1027 85 3 Move 10043 | 40 275 538 277 524 257 284 41 484 598 546 595 1011 1315 178 1242 827 393 97 306 215 Hop 1 | . . . . . . . . . . . . . . . . . 1 . . . Pick Up 167 | 4 3 3 10 10 2 1 1 13 10 14 13 17 11 6 17 8 9 5 5 5 Fast Attach 84 | 6 2 2 1 10 2 3 . 10 4 10 2 6 4 1 1 8 7 . 4 1 Attach 72 | . . 1 4 4 1 . 3 10 1 8 . 6 5 . 12 5 2 2 7 1 Detach 32 | . . 1 1 5 1 . . 6 2 1 1 . 1 1 3 2 2 1 1 3 Swap 175 | . 1 7 7 5 1 1 . 4 7 8 9 21 26 7 26 14 14 5 4 8 Drop 136 | . 3 3 2 15 5 4 . 7 7 8 9 9 13 6 6 12 21 1 5 . Fire 583 | . 6 25 20 19 22 3 . 37 35 66 4 43 39 10 48 42 42 14 76 32 Melee 66 | . . . . 1 . . . . . 2 10 9 5 . 16 15 . . . 8 Ram . | . . . . . . . . . . . . . . . . . . . . . Kick . | . . . . . . . . . . . . . . . . . . . . . Crush 19 | . . . 1 3 . 2 . . 10 . 1 . . . . . . . 2 . Escape Stasis 35 | . . . . . . . . . . 22 . 13 . . . . . . . . Rewire 169 | . . . . . 65 97 . . . 6 . . . . 1 . . . . . Trap . | . . . . . . . . . . . . . . . . . . . . . Miscellaneous 3 | . . . . 3 . . . . . . . . . . . . . . . . Route ------- -11/Scrapyard -10/Materials (discovered 3 exits: *Mat x2 / *Min) -10/Mines (discovered 2 exits: *Mat x2) -9/Materials (discovered 4 exits: Mat / Min / *Sto x2) -9/Storage (discovered 2 exits: *Mat / Gar) -9/Garrison -9/Recycling -7/Factory -7/Waste -7/Factory (discovered 2 exits: [*Low] / Gar) -7/Garrison (discovered 3 exits: *Fac x3) -7/Factory (discovered 2 exits: [*Low] / Gar) -7/Garrison (discovered 3 exits: *Fac x3) -6/Factory -6/Waste -6/Factory (discovered 2 exits: *Fac / *Ext) -6/Extension (discovered 2 exits: *Fac / *Cet) -6/Cetus (discovered 3 exits: *Fac x2 / *Arc) -6/Archives -6/Hub_04(d) -6/Garrison History --------- Turn | Location | Event 7 | -11/Scrapyard | Discovered new exit (range 16) 52 | -11/Scrapyard | Entered Materials 174 | -10/Materials | Identified exit to Mines 187 | -10/Materials | Discovered new exit (range 11) 225 | -10/Materials | Discovered new exit (range 13) 239 | -10/Materials | Central database locked down 315 | -10/Materials | Build established: Mutant 331 | -10/Materials | Entered Mines 419 | -10/Mines | Learned 8 Materials zone layouts 442 | -10/Mines | Discovered new exit (range 7) 449 | -10/Mines | Received a Rocket Launcher from a helpful Derelict 828 | -10/Mines | Received a Mining Laser from a helpful Derelict 890 | -10/Mines | Core integrity fell below 50% 934 | -10/Mines | Discovered new exit (range 8) 990 | -10/Mines | Entered Materials 990 | -9/Materials | Accompanied by 1 ally 990 | -9/Materials | Evolved 2 slots: Propulsion x1, Utility x1 991 | -9/Materials | Identified exit to Storage 991 | -9/Materials | Identified exit to Materials 991 | -9/Materials | Identified exit to Mines 998 | -9/Materials | Discovered exit to Storage (range 15) 1320 | -9/Materials | Build established: Scavenger-Mutant 1411 | -9/Materials | Entered Storage 1735 | -9/Storage | Assisted by bots powering up and referring to "LRC-V3" 2024 | -9/Storage | Discovered exit to Materials (range 16) 2034 | -9/Storage | Build established: Commander-Mutant 2179 | -9/Storage | Found Prototype Launcher 2179 | -9/Storage | Identified Gui. Missile Launcher 2236 | -9/Storage | Repaired EM Pulse Cannon? 2329 | -9/Storage | Repaired Cld. Plasma Cannon 2359 | -9/Storage | Repaired Lgt. Treads 2497 | -9/Storage | Identified exit to Garrison 2499 | -9/Storage | Entered Garrison 2499 | -9/Garrison | Accompanied by 5 allies 2596 | -9/Garrison | Triggered checkpoint 2662 | -9/Garrison | Triggered checkpoint 2856 | -9/Garrison | Triggered checkpoint 2898 | -9/Garrison | Build established: Scavenger-Mutant 2971 | -9/Garrison | Discovered new exit (range 32) 3114 | -9/Garrison | Installed Relay Interface Framework 3121 | -9/Garrison | Entered Recycling 3121 | -9/Recycling | Accompanied by 3 allies 3124 | -9/Recycling | Spotter reported a threat 3149 | -9/Recycling | Spotter reported a threat 3149 | -9/Recycling | Spotter reported a threat 3156 | -9/Recycling | Spotter reported a threat 3199 | -9/Recycling | Spotter reported a threat 3220 | -9/Recycling | Spotter reported a threat 3230 | -9/Recycling | Spotter reported a threat 3252 | -9/Recycling | Spotter reported a threat 3261 | -9/Recycling | Spotter reported a threat 3271 | -9/Recycling | Spotter reported a threat 3271 | -9/Recycling | Spotter reported a threat 3273 | -9/Recycling | Spotter reported a threat 3323 | -9/Recycling | Spotter reported a threat 3326 | -9/Recycling | Spotter reported a threat 3343 | -9/Recycling | Spotter reported a threat 3390 | -9/Recycling | Spotter reported a threat 3442 | -9/Recycling | Spotter reported a threat 3452 | -9/Recycling | Spotter reported a threat 3465 | -9/Recycling | Spotter reported a threat 3473 | -9/Recycling | Spotter reported a threat 3518 | -9/Recycling | Spotter reported a threat 3520 | -9/Recycling | Spotter reported a threat 3520 | -9/Recycling | Spotter reported a threat 3520 | -9/Recycling | Spotter reported a threat 3573 | -9/Recycling | Spotter reported a threat 3579 | -9/Recycling | Spotter reported a threat 3592 | -9/Recycling | Spotter reported a threat 3628 | -9/Recycling | Spotter reported a threat 3645 | -9/Recycling | Build established: Commander-Mutant 3645 | -9/Recycling | Spotter reported a threat 3650 | -9/Recycling | Discovered new exit (range 16) 3673 | -9/Recycling | Spotter reported a threat 3673 | -9/Recycling | Spotter reported a threat 3681 | -9/Recycling | Spotter reported a threat 3720 | -9/Recycling | Spotter reported a threat 3724 | -9/Recycling | Spotter reported a threat 3724 | -9/Recycling | Spotter reported a threat 3726 | -9/Recycling | Spotter reported a threat 3777 | -9/Recycling | Spotter reported a threat 3796 | -9/Recycling | Spotter reported a threat 3797 | -9/Recycling | Entered Factory 3797 | -7/Factory | Accompanied by 5 allies 3797 | -7/Factory | Evolved 4 slots: Propulsion x1, Utility x3 3873 | -7/Factory | Sucked down chute 3873 | -7/Factory | Entered Waste 3887 | -7/Waste | Spotted C-40 Crusher 3907 | -7/Waste | Destroyed C-40 Crusher 3914 | -7/Waste | Found Damper Plating 3928 | -7/Waste | Found Damper Plating 3954 | -7/Waste | Spotted C-40 Crusher 3958 | -7/Waste | Spotted C-40 Crusher 3975 | -7/Waste | Destroyed C-40 Crusher 3987 | -7/Waste | Crushed by Compactor (1 part destroyed, 1 dropped) 3990 | -7/Waste | Crushed by Compactor (1 part destroyed, 1 dropped) 3993 | -7/Waste | Crushed by Compactor (1 part destroyed, 1 dropped) 3996 | -7/Waste | Crushed by Compactor (1 part destroyed, 1 dropped) 3999 | -7/Waste | Crushed by Compactor (1 part destroyed, 1 dropped) 4010 | -7/Waste | 5 allies followed down the chute 4020 | -7/Waste | Destroyed C-40 Crusher 4026 | -7/Waste | Spotted C-40 Crusher 4033 | -7/Waste | Destroyed C-40 Crusher 4040 | -7/Waste | Spotted C-40 Crusher 4049 | -7/Waste | Lost 8 parts (2p3n1u2w) 4110 | -7/Waste | Spotted C-40 Crusher 4131 | -7/Waste | Destroyed C-40 Crusher 4209 | -7/Waste | Discovered new exit (range 16) 4300 | -7/Waste | Build established: Mutant 4466 | -7/Waste | Entered Factory 4623 | -7/Factory | Build established: Scavenger-Mutant 4729 | -7/Factory | Discovered new exit (range 16) 5093 | -7/Factory | Build established: Mutant 5419 | -7/Factory | Garrison activated, responded to threat 5590 | -7/Factory | Build established: Scavenger-Mutant 5595 | -7/Factory | Identified exit to Garrison 5597 | -7/Factory | Entered Garrison 5670 | -7/Garrison | Triggered checkpoint 5715 | -7/Garrison | Garrison Relay disabled 5876 | -7/Garrison | Triggered checkpoint 6075 | -7/Garrison | Lost 6 parts (2n2u2w) 6156 | -7/Garrison | Triggered checkpoint 6204 | -7/Garrison | Discovered new exit (range 10) 6256 | -7/Garrison | Triggered checkpoint 6302 | -7/Garrison | Garrison Relay disabled 6496 | -7/Garrison | Discovered new exit (range 18) 6573 | -7/Garrison | Garrison Relay disabled 6626 | -7/Garrison | Triggered checkpoint 6727 | -7/Garrison | Discovered new exit (range 9) 6758 | -7/Garrison | Expanded RIF knowledge: Zone Cloak 6808 | -7/Garrison | Garrison Relay disabled 6850 | -7/Garrison | Entered Factory 7398 | -7/Factory | Fabricated Hcp. Storage Unit (x1) 7603 | -7/Factory | Discovered new exit (range 14) 7652 | -7/Factory | Fabricated S-27 Virus? 7820 | -7/Factory | Allied Derelicts emerged from ambush trap array 7996 | -7/Factory | Identified exit to Garrison 8030 | -7/Factory | Entered Garrison 8030 | -7/Garrison | Accompanied by 5 allies 8080 | -7/Garrison | Triggered checkpoint 8206 | -7/Garrison | Garrison Relay disabled 8458 | -7/Garrison | Triggered checkpoint 8459 | -7/Garrison | Core integrity fell below 50% 8511 | -7/Garrison | Build established: Bothacker-Mutant 8527 | -7/Garrison | Discovered new exit (range 13) 8666 | -7/Garrison | Triggered checkpoint 8746 | -7/Garrison | Triggered checkpoint 8820 | -7/Garrison | Lost 4 parts (1p1n2w) 8851 | -7/Garrison | Discovered new exit (range 15) 8881 | -7/Garrison | Expanded RIF knowledge: Robot Detection 8939 | -7/Garrison | Garrison Relay disabled 9085 | -7/Garrison | Discovered new exit (range 18) 9118 | -7/Garrison | Spotted B-75 Beast 9283 | -7/Garrison | Lost 3 parts (1p2n) 9676 | -7/Garrison | Core integrity fell below 20% 9712 | -7/Garrison | Triggered checkpoint 9726 | -7/Garrison | Garrison Relay disabled 10090 | -7/Garrison | Entered Factory 10090 | -6/Factory | Evolved 2 slots: Utility x2 11965 | -6/Factory | Fabricated G-50 Soldier (x3) 12041 | -6/Factory | Sucked down chute 12041 | -6/Factory | Entered Waste 12042 | -6/Waste | Met a frightened Derelict 12048 | -6/Waste | Found Quantum Capacitor 12056 | -6/Waste | EMP discharged 12089 | -6/Waste | Spotted C-40 Crusher 12089 | -6/Waste | Spotted C-40 Crusher 12110 | -6/Waste | 9 allies followed down the chute 12111 | -6/Waste | Destroyed C-40 Crusher 12123 | -6/Waste | Found Damper Plating 12129 | -6/Waste | Allies destroyed C-40 Crusher 12132 | -6/Waste | Found Damper Plating 12137 | -6/Waste | Spotted C-40 Crusher 12147 | -6/Waste | Spotted C-40 Crusher 12150 | -6/Waste | Spotted C-40 Crusher 12155 | -6/Waste | Allies destroyed C-40 Crusher 12156 | -6/Waste | EMP discharged 12156 | -6/Waste | System corruption reached 10% 12159 | -6/Waste | Spotted C-40 Crusher 12203 | -6/Waste | Discovered new exit (range 15) 12256 | -6/Waste | EMP discharged 12272 | -6/Waste | Identified exit to Factory 12279 | -6/Waste | Entered Factory 12279 | -6/Factory | Accompanied by 4 allies 12865 | -6/Factory | Lost 3 parts (1u2w) 13135 | -6/Factory | Repaired Broken Exp. Heat Sink 13473 | -6/Factory | Garrison activated, responded to threat 13759 | -6/Factory | Build established: Hauler-Mutant 13762 | -6/Factory | Discovered new exit (range 10) 13804 | -6/Factory | Identified exit to Factory 13868 | -6/Factory | Fabricated Hcp. Storage Unit? 14386 | -6/Factory | Discovered new exit (range 9) 14395 | -6/Factory | Identified exit to Extension 14401 | -6/Factory | Entered Extension 14401 | -6/Extension | Accompanied by 3 allies 14610 | -6/Extension | Rescued a captive Derelict 14611 | -6/Extension | Rescued a captive Derelict 14661 | -6/Extension | Rescued a captive Derelict 14662 | -6/Extension | Rescued a captive Derelict 15046 | -6/Extension | Rescued a captive Derelict 15047 | -6/Extension | Rescued a captive Derelict 15405 | -6/Extension | Spotted B-75 Beast 15420 | -6/Extension | Destroyed B-75 Beast 15439 | -6/Extension | Spotted B-75 Beast 15459 | -6/Extension | Core integrity fell below 50% 15472 | -6/Extension | Destroyed B-75 Beast 15500 | -6/Extension | Lost 4 parts (1p2n1w) 15665 | -6/Extension | Rescued A7 15734 | -6/Extension | Rescued a captive Derelict 16009 | -6/Extension | Discovered exit to Factory (range 10) 16011 | -6/Extension | Discovered new exit (range 6) 16029 | -6/Extension | Identified exit to Cetus 16037 | -6/Extension | Entered Cetus 16037 | -6/Cetus | Accompanied by 9 allies (A7) 16042 | -6/Cetus | Acquired a Cetus Manufacturing Module code from A7 16066 | -6/Cetus | Spotted Cetus Guard 16066 | -6/Cetus | Spotted Cetus Guard 16068 | -6/Cetus | Spotted Cetus Guard 16068 | -6/Cetus | Spotted Cetus Guard 16078 | -6/Cetus | Allies destroyed Cetus Guard 16083 | -6/Cetus | Allies destroyed Cetus Guard 16084 | -6/Cetus | Allies destroyed Cetus Guard 16092 | -6/Cetus | Allies destroyed Cetus Guard 16179 | -6/Cetus | Discovered exit to Factory (range 16) 16278 | -6/Cetus | Cetus Manufacturing Module disabled 16321 | -6/Cetus | P-60 Hacker assimilated allied V1-KIW(h) 16371 | -6/Cetus | Extracted ID and sensor layout for unrecognized location from A7's data core 16390 | -6/Cetus | Found Med. Regenerative Plating 16438 | -6/Cetus | Failed to start Cetus Manufacturing Module 16523 | -6/Cetus | Discovered new exit (range 16) 16609 | -6/Cetus | Destroyed Cetus Guard 16618 | -6/Cetus | Destroyed Cetus Guard 16627 | -6/Cetus | Destroyed Cetus Guard 16642 | -6/Cetus | Destroyed Cetus Guard 16705 | -6/Cetus | Discovered exit to Factory (range 15) 16718 | -6/Cetus | Met Revision 17 16933 | -6/Cetus | Identified exit to Archives 16934 | -6/Cetus | Entered Archives 17305 | -6/Archives | Build established: Scavenger-Mutant 18088 | -6/Archives | Unable to access archive contents 18105 | -6/Archives | Discovered new exit (range 14) 18130 | -6/Archives | Identified exit to Hub_04(d) 18174 | -6/Archives | Entered Hub_04(d) 18272 | -6/Hub_04(d) | Garrison activated, responded to threat 18645 | -6/Hub_04(d) | Garrison activated, responded to threat 18859 | -6/Hub_04(d) | Identified exit to Garrison 18900 | -6/Hub_04(d) | Core integrity fell below 20% 18939 | -6/Hub_04(d) | Lost 3 parts (3w) 19011 | -6/Hub_04(d) | Entered Garrison 19193 | -6/Garrison | Garrison Relay disabled 19284 | -6/Garrison | Triggered checkpoint 19514 | -6/Garrison | Triggered checkpoint 19526 | -6/Garrison | Triggered checkpoint 19529 | -6/Garrison | Destroyed self with Long-range Missile Launcher Last Messages --------------- 19193_ Relay Coupler [NC] tumbles out of relay unit. 19197_ Acquired Unknown Hackware. 19200_ Acquired Relay Coupler [NC]. 19222_ Acquired 5 matter. 19262_ System corrupted: Energy discharge (-48). 19284_ Garrison Door breached. 19284_ Beams of light sweep through the air. An alarm sounds. 19291_ G-50 Soldier destroyed. 19402_ P-60 Hacker destroyed. 19429_ Acquired 6 matter. 19440_ Acquired 52 matter. 19444_ Acquired 64 matter. 19457_ Acquired Lgt. Angular Momentum Engine. 19514_ S-27 Virus destroyed. 19517_ Lgt. Treads destroyed. 19519_ System corrupted: Heat flow error (+216). 19520_ S-27 Virus destroyed. 19528_ The unstable cave ceiling collapses. 19529_ S-27 Virus destroyed. 19529_ G-50 Soldier destroyed. Map ----- +----------------------------------------------------+ | ?????????????????????????????????????????????????? | | ?????????????????????????????????????????????????? | | ???????????????????????#####?????????????????????? | | ???????????????????????# #?????????????????????? | | ?????????????????####### #######???????????????? | | ?????????????????# [ [ ==[#???????????????? | | ?????????????????# ######"#### #???????????????? | | ????????????????#"" ""#???# #??# #???????????????? | | ????????????????#######???# #??# #???#####???????? | | ??????????????????????????# #??# #???# #???????? | | ??????????????????????????# ####[##### #???????? | | ??????????????????????????# # ! #???????? | | ??????????????????????????#### #???????? | | ?????????????????????????????# ##########???????? | | ?????????????????????????????# #????????????????? | | ?????????????????????????????# #????????????????? | | ??????????????????##?###????## #????????????????? | | ??????????????????#;##"######" #????????????????? | | ????????????????### # #????????????????? | | ????????????????# #######" #????????????????? | | ?????????????????# ?????## #????????????????? | | ????????????# %??# # ##???#" #????????????????? | | ?????????# # # ???## #????????????????? | | ??????? ##### #????????????????? | | ??????? ! #????????????????? | | ??????? =% @ #????????????????? | | ???????# g #######????????????????? | | ???????? g####???????????????????????? | | ????????? ???????????????????????????? | | ????????? ???????????????????????????? | | ??????????? ????????????????????????????? | | ??????????? ????????????????????????????? | | ??????????? ## ????????????????????????????? | | ??????????? ?# ????????????????????????????? | | ????????????%=%*?? ?????????????????????????????? | | ??????????? * ??? ?????????????????????????????? | | ????????????? ?? ?????????????????????????????? | | ?????????????????## ?????????????????????????????? | | ??????????????????#??????????????????????????????? | | ?????????????????????????????????????????????????? | | ?????????????????????????????????????????????????? | | ?????????????????????????????????????????????????? | | ?????????????????????????????????????????????????? | | ?????????????????????????????????????????????????? | | ?????????????????????????????????????????????????? | | ?????????????????????????????????????????????????? | | ?????????????????????????????????????????????????? | | ?????????????????????????????????????????????????? | | ?????????????????????????????????????????????????? | | ?????????????????????????????????????????????????? | +----------------------------------------------------+ Best States ------------- Heat Dissipation 68 Energy Generation 25 Energy Capacity 350 Matter Stores 300 Matter Capacity 300 Sight Range 18 Robot Scan Range 16 Terrain Scan Range 20 Terrain Scan Density 210 Corruption Prevention 12 Heat Shielding 75 Armor Coverage 2400 Resistance: EM 90 Evasion (%) 50 Core Analysis 8 Recoil Reduction 4 Particle Charging 20 Offensive Hacking 12 Defensive Hacking 12 Relay Coupler Types 60 Relay Coupler Value 3 Item Schematics ----------------- Hcp. Storage Unit | -9/Recycling | Hacked Cooling System | -9/Recycling | Hacked Imp. Coolant Injector | -6/Factory | Hacked Adv. Reclamation Unit | -6/Extension | Hacked Robot Schematics ------------------ None Fabricated ------------ Hcp. Storage Unit | x1 | -7/Factory S-27 Virus | x4 | -7/Factory | Preloaded G-50 Soldier | x3 | -6/Factory | Preloaded Hcp. Storage Unit | x1 | -6/Factory Alien Tech Used ----------------- None Achievements -------------- None Challenges ------------ None Game ------ Seed GaussFortressDatajack Manual? 0 Play Time 03:12:57 Cumulative 157.2 hours Start 2021.08.26 @ 23:00:51 End 2021.08.27 @ 02:13:00 Sessions 1 Manual Loads 0 Difficulty Rogue Special Mode None Game No. 47 Rogue 47 Adventurer 0 Explorer 0 Win Type - Total 6 Types 5/0/1/0/0/0/0/0/0 Lore% 74 Gallery% 83 Achievement% 64 Wizard Run 0 Options --------- ASCII 0 Keyboard 0 Movement Numpad Keybinds 0 Fullscreen 1 Font 14/SmallcapsGlow Map View 84x54 Tactical HUD 1 Map Filters NONE Filters NONE Steam 1 RUN: 70975f5d-f78b-4207-8fdc-e5baa99b4bde